bitfinex-derivatives/quotes_SOLF0:USTF0_20260213
["timestamp","ask_amount","ask_price","bid_price","bid_amount"]
[1771010320204,10.5832,85.088,85.039,7.94485194]
[1771010320701,8.55630167,85.1,85.039,7.94485194]
[1771010320902,8.55630167,85.1,85.041,7.94423667]
[1771010321204,8.55630167,85.1,85.044,7.94423667]
[1771010321404,10.5811,85.105,85.055,7.94423667]
[1771010322110,8.55630167,85.1,85.041,7.94423667]
[1771010322304,8.55630167,85.08,85.029,7.94423667]
[1771010323700,10.5863,85.063,85.029,7.94423667]
[1771010323904,8.55630167,85.08,85.029,7.94423667]
[1771010324808,10.5852,85.071,85.029,7.94423667]
[1771010325410,8.55630167,85.08,85.029,7.94423667]
[1771010326703,10.586,85.065,85.029,7.94423667]
[1771010328709,10.585,85.073,85.029,7.94423667]
[1771010328909,10.585,85.073,85.03,7.94038453]
[1771010329911,10.5837,85.083,85.031,7.94038453]
[1771010330710,10.5837,85.083,85.038,10.5892]
[1771010330912,10.5837,85.083,85.039,7.94166368]
[1771010332817,10.5846,85.076,85.039,7.94166368]
[1771010335005,3.18652134,85.07,85.039,7.94166368]
[1771010336902,3.18647094,85.07,85.039,7.94166368]
[1771010337107,3.18647094,85.08,85.039,7.94166368]
[1771010337302,10.5837,85.083,85.041,7.94150328]
[1771010337610,3.18647094,85.08,85.041,7.94150328]
[1771010338708,10.5843,85.078,85.041,7.94150328]
[1771010340616,10.5851,85.072,85.041,7.94150328]
[1771010341415,10.5841,85.08,85.041,7.94150328]
[1771010341817,8.53451434,85.1,85.041,7.94150328]
[1771010342513,8.53451434,85.08,85.03,10.80712559]
[1771010342714,8.53451434,85.08,85.029,7.93729792]
[1771010343119,8.53451434,85.08,85.018,7.9329834]
[1771010343419,116.38,85.079,85.018,7.9329834]
[1771010343817,10.5875,85.053,85.018,7.9329834]
[1771010344307,10.5882,85.047,85.018,7.9329834]
[1771010345017,10.589,85.041,85.018,7.9329834]
[1771010345417,21.1689,85.077,85.018,7.9329834]
[1771010345913,8.53451434,85.08,85.018,7.9329834]
[1771010346118,8.53451434,85.08,85.032,7.9525034]
[1771010346316,8.53451434,85.08,85.033,7.9525034]
[1771010346714,10.5857,85.067,85.033,7.9525034]
[1771010347219,10.5857,85.067,85.034,7.94057512]
[1771010347824,8.53451434,85.1,85.038,7.94057512]
[1771010348022,8.53451434,85.1,85.049,7.94057512]
[1771010348422,10.5835,85.085,85.049,7.94057512]
[1771010348622,8.53451434,85.1,85.047,10.80712559]
[1771010349023,10.5842,85.079,85.047,10.80712559]
[1771010349225,8.53451434,85.1,85.039,10.80712559]
[1771010349421,8.53451434,85.1,85.034,7.94057512]
[1771010349628,10.5847,85.075,85.034,18.74770071]
[1771010349822,8.53451434,85.1,85.034,18.74770071]
[1771010350027,10.5847,85.075,85.034,7.94057512]
[1771010352122,10.5847,85.075,85.034,18.74770071]
[1771010352524,10.5847,85.075,85.035,7.91698486]
[1771010353129,10.5847,85.075,85.036,7.92053738]
[1771010353324,10.5847,85.075,85.045,7.92053738]
[1771010353530,10.5838,85.083,85.046,7.92053738]
[1771010353921,116.3,85.097,85.046,7.92053738]
[1771010354120,10.5828,85.09,85.046,7.92053738]
[1771010354325,10.5828,85.09,85.055,7.92053738]
[1771010354726,10.5836,85.084,85.055,7.92053738]
[1771010356633,116.3,85.097,85.055,7.92053738]
[1771010357234,8.53451434,85.1,85.055,7.92053738]
[1771010358028,116.92,85.107,85.055,7.92053738]
[1771010359737,10.5819,85.098,85.055,7.92053738]
[1771010360528,127.9008,85.106,85.058,10.5868]
[1771010360732,10.5808,85.106,85.059,7.91477873]
[1771010360929,3.18475922,85.11,85.059,7.91477873]
[1771010361135,3.18475922,85.11,85.061,7.88717199]
[1771010361827,3.18475922,85.11,85.066,10.5857]
[1771010362027,3.18475922,85.1,85.066,10.5857]
[1771010362640,3.18475922,85.1,85.061,7.88717199]
[1771010362641,3.18475922,85.1,85.062,7.88717199]
[1771010367146,3.18475922,85.08,85.054,10.80712559]
[1771010367349,3.18475922,85.08,85.049,7.87131158]
[1771010367749,3.18475922,85.09,85.049,7.87131158]
[1771010368748,10.583,85.089,85.049,7.87131158]
[1771010369643,10.583,85.089,85.051,10.5876]
[1771010369956,10.5822,85.096,85.055,10.80712559]
[1771010370155,3.18475922,85.09,85.055,18.69342821]
[1771010370351,13.76765922,85.09,85.055,7.88630262]
[1771010370857,3.18475922,85.09,85.055,7.88630262]
[1771010371156,10.5818,85.099,85.06,7.88904565]
[1771010373349,3.18475922,85.1,85.06,7.88904565]
[1771010374454,3.18475922,85.09,85.06,7.88904565]
[1771010375253,3.18475922,85.09,85.054,10.90616027]
[1771010375446,3.18475922,85.09,85.05,7.88607924]
[1771010375645,3.18475922,85.09,85.051,7.88607924]
[1771010375856,3.18475922,85.09,85.056,7.88607924]
[1771010376051,3.18475922,85.09,85.059,7.88607924]
[1771010376659,3.18475922,85.09,85.055,10.90616027]
[1771010376660,3.18475922,85.09,85.063,7.88607924]
[1771010378158,3.18475922,85.1,85.063,7.88607924]
[1771010381869,10.5818,85.099,85.063,7.88607924]
[1771010385266,10.5827,85.092,85.063,7.88607924]
[1771010385469,3.18475922,85.09,85.063,7.88607924]
[1771010387362,10.5827,85.092,85.063,7.88607924]
[1771010389164,10.5818,85.099,85.063,7.88607924]
[1771010391166,3.18475922,85.09,85.055,18.81304927]
[1771010391465,3.18475922,85.09,85.056,7.92197106]
[1771010392269,3.18475922,85.09,85.057,7.92197106]
[1771010392869,3.18475922,85.09,85.055,10.89107821]
[1771010393371,3.18475922,85.09,85.053,10.89107821]
[1771010393966,3.18475922,85.09,85.051,10.5876]
[1771010394367,3.18475922,85.09,85.051,18.51603159]
[1771010395071,3.18475922,85.09,85.052,7.91696113]
[1771010395272,3.18475922,85.09,85.056,7.91696113]
[1771010395668,3.18475922,85.09,85.057,10.89107821]
[1771010395864,10.5817,85.099,85.057,10.89107821]
[1771010396273,10.5817,85.099,85.035,21.59731568]
[1771010396274,96.5687732,85.146,85.065,7.91696113]
[1771010396471,174.0,85.227,85.033,494.1922]
[1771010396472,3.18475922,85.18,85.11,3.18475922]
[1771010396673,3.18475922,85.17,85.118,10.5793]
[1771010396867,3.18475922,85.16,85.118,10.5793]
[1771010397073,3.18475922,85.16,85.11,14.06397729]
[1771010397375,3.18475922,85.16,85.128,10.578]
[1771010397770,3.18475922,85.16,85.125,10.5785]
[1771010397970,3.18475922,85.17,85.125,10.5785]
[1771010398370,44.72762621,85.17,85.125,10.5785]
[1771010398674,3.18475922,85.16,85.125,10.5785]
[1771010398874,3.17972704,85.16,85.125,10.5785]
[1771010399565,3.17972704,85.16,85.133,10.5774]
[1771010400975,3.17972704,85.14,85.098,10.83740345]
[1771010401175,3.17972704,85.15,85.1,3.17972704]
[1771010401374,3.17972704,85.16,85.11,3.17972704]
[1771010401575,3.17972704,85.15,85.1,3.17972704]
[1771010402379,42.09485204,85.159,85.1,3.17972704]
[1771010402885,42.09485204,85.159,85.119,10.5791]
[1771010404681,97.02,85.185,85.09,10.83740345]
[1771010404682,3.17972704,85.17,85.136,10.577]
[1771010406370,3.17972704,85.19,85.144,10.576]
[1771010406680,3.17972704,85.19,85.13,3.17972704]
[1771010407676,34.16839126,85.18,85.14,10.5765]
[1771010409588,30.85895315,85.195,85.108,10.83740345]
[1771010409881,297.0,85.244,85.108,10.83740345]
[1771010409882,3.17972704,85.2,85.15,3.17972704]
[1771010410078,30.85895315,85.208,85.16,3.17972704]
[1771010410274,3.17972704,85.19,85.14,3.17972704]
[1771010410480,3.17972704,85.18,85.13,3.17972704]
[1771010411689,34.03868019,85.19,85.152,10.575]
[1771010412588,3.17972704,85.19,85.16,10.5741]
[1771010412779,3.17972704,85.2,85.16,10.5741]
[1771010413576,34.04776444,85.2,85.16,10.5741]
[1771010414287,3.17972704,85.18,85.13,3.17972704]
[1771010414782,3.17972704,85.18,85.124,115.8]
[1771010414783,30.8680374,85.198,85.14,3.17972704]
[1771010415384,3.17972704,85.19,85.14,3.17972704]
[1771010415691,30.8680374,85.198,85.14,3.17972704]
[1771010415885,3.17972704,85.19,85.14,3.17972704]
[1771010416191,3.17972704,85.19,85.161,10.574]
[1771010416579,30.8680374,85.198,85.153,10.5749]
[1771010416882,3.17972704,85.19,85.153,10.5749]
[1771010417083,34.03759829,85.19,85.153,10.5749]
[1771010417879,34.03759829,85.19,85.162,10.5738]
[1771010418184,30.85787125,85.19,85.14,3.17972704]
[1771010418582,30.85787125,85.19,85.155,10.5747]
[1771010418983,30.85787125,85.19,85.14,3.17972704]
[1771010419692,30.8440011,85.179,85.12,3.17972704]
[1771010419893,30.8440011,85.169,85.11,3.17972704]
[1771010420285,30.8440011,85.169,85.098,10.75418214]
[1771010420490,30.8440011,85.169,85.11,3.17972704]
[1771010420893,30.8440011,85.169,85.135,10.5772]
[1771010421490,3.17972704,85.17,85.098,10.75418214]
[1771010421691,3.17972704,85.19,85.14,3.17972704]
[1771010422294,30.84287963,85.197,85.14,3.17972704]
[1771010423388,21.1282,85.241,85.122,116.94]
[1771010423389,3.17972704,85.21,85.15,3.17972704]
[1771010423582,3.17972704,85.22,85.17,3.17972704]
[1771010424090,3.17972704,85.22,85.16,3.17972704]
[1771010424286,3.17972704,85.22,85.17,3.17972704]
[1771010424490,3.17972704,85.24,85.19,3.17972704]
[1771010424689,3.17972704,85.23,85.18,3.17972704]
[1771010425683,30.87395055,85.24,85.18,3.17972704]
[1771010425684,34.05367759,85.24,85.18,3.17972704]
[1771010425906,34.05367759,85.24,85.198,10.5693]
[1771010426091,3.17972704,85.23,85.198,10.5693]
[1771010426788,34.05367759,85.24,85.204,10.5685]
[1771010427384,34.05367759,85.24,85.155,21.1494]
[1771010427385,34.06479256,85.22,85.16,3.17972704]
[1771010428194,34.06479256,85.22,85.17,3.17972704]
[1771010428395,30.88506552,85.22,85.17,3.17972704]
[1771010428800,30.88506552,85.22,85.19,10.5703]
[1771010428996,3.17972704,85.2,85.15,3.17972704]
[1771010429201,25.58606585,85.21,85.15,3.17972704]
[1771010429202,28.76579289,85.21,85.15,3.17972704]
[1771010430000,3.17972704,85.2,85.14,3.17972704]
[1771010430698,3.17972704,85.19,85.158,10.5744]
[1771010431002,3.17972704,85.19,85.14,3.17972704]
[1771010431298,3.17972704,85.19,85.118,116.48]
[1771010431299,25.58388244,85.19,85.15,10.5752]
[1771010431598,3.17972704,85.18,85.15,10.5752]
[1771010433997,25.57117652,85.179,85.141,10.5764]
[1771010434300,28.75090356,85.17,85.11,3.17972704]
[1771010435702,28.75090356,85.17,85.131,10.5777]
[1771010436996,3.17972704,85.16,85.131,10.5777]
[1771010437596,28.75090356,85.17,85.11,3.17972704]
[1771010437902,3.17972704,85.18,85.12,3.17972704]
[1771010438300,28.74747306,85.18,85.12,3.17972704]
[1771010438694,28.74747306,85.18,85.142,10.5763]
[1771010439409,25.56774602,85.18,85.13,3.17972704]
[1771010440300,35.35,85.265,85.11,21.1605]
[1771010440301,25.56740599,85.194,85.15,3.17972704]
[1771010440500,3.17972704,85.21,85.15,3.17972704]
[1771010440907,3.17972704,85.2,85.15,3.17972704]
[1771010441396,3.17972704,85.19,85.148,10.75418214]
[1771010442709,3.17972704,85.19,85.162,10.5738]
[1771010443008,15.85745888,85.192,85.162,10.5738]
[1771010443706,15.85745888,85.192,85.15,3.17972704]
[1771010444406,3.17972704,85.2,85.171,10.5726]
[1771010444609,15.8623766,85.206,85.171,10.5726]
[1771010445011,3.17972704,85.22,85.181,10.5714]
[1771010447013,15.88145047,85.219,85.181,10.5714]
[1771010450911,19.05908503,85.21,85.172,10.5726]
[1771010451112,3.17972704,85.2,85.172,10.5726]
[1771010451507,19.05908503,85.21,85.172,10.5726]
[1771010453808,15.87383355,85.199,85.163,10.5737]
[1771010454215,3.17972704,85.19,85.163,10.5737]
[1771010454820,15.87383355,85.199,85.163,10.5737]
[1771010456020,15.87383355,85.199,85.169,10.5729]
[1771010456620,15.87383355,85.199,85.161,10.5739]
[1771010460814,3.17725721,85.2,85.175,10.5722]
[1771010461021,3.17725721,85.21,85.175,10.5722]
[1771010461319,19.14932866,85.21,85.175,10.5722]
[1771010464025,19.14932866,85.21,85.173,10.5724]
[1771010464811,19.14932866,85.21,85.164,10.75418214]
[1771010465010,3.17725721,85.2,85.164,10.75418214]
[1771010465218,3.17725721,85.2,85.167,10.5732]
[1771010465420,3.17725721,85.2,85.141,21.50836429]
[1771010465421,19.14932866,85.21,85.166,10.75418214]
[1771010466117,3.17725721,85.22,85.168,10.75418214]
[1771010466322,16.00597916,85.219,85.168,10.75418214]
[1771010466518,3.17725721,85.21,85.168,10.75418214]
[1771010466724,16.00597916,85.209,85.174,10.5723]
[1771010468026,16.00597916,85.209,85.182,10.5713]
[1771010469419,15.98832502,85.223,85.189,10.5705]
[1771010469619,3.17725721,85.22,85.189,10.5705]
[1771010469815,19.16558223,85.22,85.189,10.5705]
[1771010470027,19.16558223,85.22,85.182,10.5713]
[1771010471924,16.00915367,85.241,85.186,10.88233203]
[1771010472226,16.00915367,85.239,85.191,10.88233203]
[1771010472718,19.24234328,85.23,85.191,10.88233203]
[1771010472927,19.24234328,85.23,85.19,10.5704]
[1771010473322,16.06508607,85.219,85.183,10.88233203]
[1771010473524,16.06508607,85.219,85.178,10.88233203]
[1771010473728,16.06508607,85.219,85.175,10.88233203]
[1771010473928,16.06508607,85.219,85.178,10.88233203]
[1771010474230,16.06508607,85.219,85.172,10.88233203]
[1771010474428,16.06508607,85.219,85.16,3.17725721]
[1771010474429,16.06508607,85.219,85.175,10.88233203]
[1771010474620,16.06508607,85.219,85.177,10.88233203]
[1771010474819,16.06508607,85.219,85.179,10.5717]
[1771010476318,16.06508607,85.219,85.187,10.5707]
[1771010477624,16.06508607,85.219,85.177,10.5719]
[1771010478026,16.06508607,85.219,85.177,21.45423203]
[1771010478428,16.06508607,85.219,85.177,10.5719]
[1771010479126,16.06508607,85.219,85.177,21.45423203]
[1771010480127,16.06508607,85.219,85.181,10.5715]
[1771010481731,16.06508607,85.219,85.188,10.5706]
[1771010484632,16.05662936,85.209,85.18,10.88233203]
[1771010484929,16.05662936,85.209,85.178,10.88233203]
[1771010485433,16.05662936,85.209,85.181,21.45383203]
[1771010485935,16.05662936,85.209,85.184,10.88233203]
[1771010486530,16.05662936,85.209,85.181,10.88233203]
[1771010486736,10.617564,85.199,85.153,14.33890952]
[1771010486926,10.617564,85.199,85.152,265.69112458]
[1771010487127,10.61242884,85.219,85.17,3.17725721]
[1771010487325,10.61242884,85.219,85.171,14.33890952]
[1771010488732,10.61242884,85.219,85.19,10.5703]
[1771010489031,10.61242884,85.219,85.171,14.33890952]
[1771010489231,10.61242884,85.219,85.172,14.33890952]
[1771010489732,10.61242884,85.219,85.181,14.33890952]
[1771010490329,10.61242884,85.219,85.18,17.51616673]
[1771010490533,10.61242884,85.219,85.18,14.33890952]
[1771010490721,10.61242884,85.219,85.196,10.5696]
[1771010491126,10.61242884,85.219,85.176,14.33890952]
[1771010491330,10.71245035,85.209,85.176,14.33890952]
[1771010491537,10.71245035,85.209,85.178,10.5718]
[1771010491935,10.71245035,85.209,85.176,14.33890952]
[1771010492238,10.71245035,85.209,85.175,14.33890952]
[1771010492825,10.71245035,85.199,85.174,10.5723]
[1771010494333,10.71245035,85.199,85.172,14.33890952]
[1771010494541,10.71245035,85.199,85.177,14.33890952]
[1771010495337,3.17725721,85.21,85.165,21.50836429]
[1771010495540,3.17725721,85.21,85.166,1.15370856]
[1771010495839,4.0368029,85.213,85.166,1.15370856]
[1771010496141,4.0368029,85.226,85.194,10.5699]
[1771010496442,3.17725721,85.22,85.194,10.5699]
[1771010497338,4.0368029,85.226,85.181,1.06740278]
[1771010498835,4.03047933,85.209,85.161,1.06749044]
[1771010499037,3.17725721,85.22,85.161,1.06749044]
[1771010499741,3.17725721,85.22,85.187,10.5707]
[1771010500132,21.1183,85.281,85.181,4.04516233]
[1771010500133,3.17725721,85.23,85.181,4.04516233]
[1771010500338,3.17725721,85.23,85.203,10.5688]
[1771010501743,3.17725721,85.23,85.195,10.5697]
[1771010501744,7.20773654,85.23,85.195,10.5697]
[1771010502439,4.03047933,85.229,85.187,10.5707]
[1771010502634,4.03047933,85.229,85.181,4.04516233]
[1771010503341,3.17725721,85.22,85.181,4.04516233]
[1771010503735,3.17725721,85.22,85.193,10.5699]
[1771010504346,4.03047933,85.229,85.181,4.04516233]
[1771010505146,4.03047933,85.229,85.201,10.5689]
[1771010507039,4.03047933,85.229,85.194,10.5698]
[1771010515158,4.03047933,85.229,85.2,10.5691]
[1771010515657,13.66,85.25,85.207,10.5682]
[1771010515658,3.17725721,85.24,85.207,10.5682]
[1771010515846,4.03047933,85.243,85.207,10.5682]
[1771010516754,3.17725721,85.24,85.207,10.5682]
[1771010517151,7.20773654,85.24,85.207,10.5682]
[1771010517352,3.17725721,85.23,85.198,10.5693]
[1771010518248,4.03047933,85.229,85.191,10.5702]
[1771010518450,3.17725721,85.22,85.191,10.5702]
[1771010520360,4.03047933,85.219,85.184,10.5711]
[1771010520558,4.03047933,85.219,85.157,115.92]
[1771010520559,4.03047933,85.199,85.165,21.50836429]
[1771010520755,3.17725721,85.19,85.153,21.50836429]
[1771010521055,3.8322992,85.238,85.181,3.73697396]
[1771010521254,3.8322992,85.238,85.18,3.17736284]
[1771010521255,16.83736284,85.25,85.191,3.73697396]
[1771010521758,16.83736284,85.25,85.21,10.5679]
[1771010521759,3.8322992,85.247,85.21,10.5679]
[1771010521957,3.8322992,85.247,85.181,21.50836429]
[1771010521958,13.66,85.25,85.211,3.73697396]
[1771010522955,16.83736284,85.25,85.214,10.5674]
[1771010523151,3.8322992,85.249,85.214,10.5674]
[1771010523556,3.8322992,85.249,85.211,3.73697396]
[1771010524263,10.5633,85.248,85.212,10.5676]
[1771010524458,3.8322992,85.249,85.211,3.73697396]
[1771010524763,3.17736284,85.24,85.199,3.73697396]
[1771010524959,3.8322992,85.249,85.213,10.5674]
[1771010526058,3.8322992,85.289,85.214,3.73697396]
[1771010526262,3.8322992,85.289,85.241,3.73697396]
[1771010527757,3.8322992,85.304,85.251,3.73697396]
[1771010527964,3.17736284,85.3,85.251,3.73697396]
[1771010528263,3.8322992,85.299,85.262,10.5614]
[1771010528464,3.8322992,85.289,85.241,3.73697396]
[1771010528963,3.8322992,85.289,85.246,10.5634]
[1771010529556,3.17736284,85.28,85.241,3.73697396]
[1771010529769,3.17736284,85.27,85.227,3.73697396]
[1771010530763,3.17736284,85.27,85.229,10.5655]
[1771010531964,3.17736284,85.27,85.229,14.30247396]
[1771010532962,3.8322992,85.268,85.216,3.73697396]
[1771010533267,3.17736284,85.24,85.199,3.73697396]
[1771010533462,3.17736284,85.24,85.212,10.5676]
[1771010533664,3.17736284,85.24,85.199,3.73697396]
[1771010534266,3.17736284,85.24,85.212,10.5676]
[1771010534468,3.8322992,85.246,85.212,10.5676]
[1771010534974,3.8322992,85.246,85.201,3.73697396]
[1771010535174,3.8322992,85.246,85.211,10.5677]
[1771010536068,3.17736284,85.22,85.177,14.5977031]
[1771010536271,3.17736284,85.21,85.174,3.73697396]
[1771010537766,3.17736284,85.21,85.175,10.5722]
[1771010537970,3.17736284,85.21,85.174,3.73697396]
[1771010538170,3.17736284,85.21,85.16,3.73697396]
[1771010538669,3.17736284,85.21,85.161,3.73697396]
[1771010539170,3.17736284,85.21,85.175,3.73697396]
[1771010539470,3.17736284,85.23,85.181,3.73697396]
[1771010539877,3.17736284,85.24,85.195,3.73697396]
[1771010540274,3.17736284,85.25,85.195,3.73697396]
[1771010540474,3.17736284,85.25,85.212,10.5676]
[1771010541078,3.17736284,85.25,85.219,10.5667]
[1771010542379,3.17736284,85.25,85.21,10.5678]
[1771010542574,3.17736284,85.24,85.21,10.5678]
[1771010542882,3.8322992,85.251,85.195,3.73697396]
[1771010543379,3.8322992,85.249,85.199,10.5692]
[1771010543879,8.50040934,85.27,85.191,3.73697396]
[1771010544182,8.50040934,85.27,85.217,3.73697396]
[1771010544384,3.8322992,85.277,85.217,3.73697396]
[1771010545782,3.8322992,85.277,85.237,10.5645]
[1771010548576,3.8322992,85.277,85.23,3.73697396]
[1771010548776,3.8322992,85.289,85.23,3.73697396]
[1771010549696,14.3903992,85.289,85.248,10.5631]
[1771010549884,3.8322992,85.289,85.248,10.5631]
[1771010552992,3.73882407,85.287,85.241,10.564]
[1771010554295,3.73882407,85.287,85.247,10.5632]
[1771010555897,3.73882407,85.287,85.253,10.5625]
[1771010559894,3.82635851,85.3,85.261,3.72353752]
[1771010560290,3.82635851,85.3,85.265,10.561]
[1771010560794,3.82635851,85.3,85.232,14.5977031]
[1771010560795,3.82635851,85.3,85.233,3.72353752]
[1771010560991,3.82635851,85.3,85.262,10.5614]
[1771010562401,3.82635851,85.299,85.262,10.5614]
[1771010562902,3.17062967,85.29,85.262,10.5614]
[1771010563101,3.17062967,85.29,85.258,10.5618]
[1771010563501,3.17062967,85.28,85.231,3.72353752]
[1771010563895,3.17062967,85.28,85.23,3.17062967]
[1771010563896,3.17062967,85.28,85.257,10.562]
[1771010564299,3.82635851,85.289,85.264,10.5612]
[1771010566396,3.17062967,85.29,85.264,10.5612]
[1771010567605,3.17062967,85.3,85.264,10.5612]
[1771010569807,3.17062967,85.31,85.271,10.5602]
[1771010570010,6.99698818,85.31,85.271,10.5602]
[1771010570603,3.82635851,85.309,85.267,3.72353752]
[1771010571008,3.17062967,85.3,85.267,3.72353752]
[1771010571704,3.17062967,85.3,85.269,10.5606]
[1771010571906,3.82635851,85.309,85.269,10.5606]
[1771010572806,3.82635851,85.309,85.277,10.5596]
[1771010573204,3.17062967,85.33,85.295,10.5573]
[1771010573505,3.17062967,85.33,85.281,3.72353752]
[1771010573706,3.82635851,85.329,85.288,10.5582]
[1771010574013,3.17062967,85.32,85.281,3.72353752]
[1771010574312,14.37805851,85.342,85.3,10.5566]
[1771010574513,3.17062967,85.34,85.3,10.5566]
[1771010575013,3.17062967,85.34,85.307,10.5559]
[1771010577006,3.17062967,85.34,85.301,3.72353752]
[1771010577007,3.17062967,85.33,85.296,14.28073752]
[1771010577910,2.03962619,85.382,85.28,3.17062967]
[1771010577911,3.17062967,85.32,85.286,10.5585]
[1771010578100,3.17062967,85.3,85.263,10.89876337]
[1771010578299,3.17062967,85.3,85.256,3.72353752]
[1771010578300,3.17062967,85.29,85.256,3.72353752]
[1771010579606,3.17062967,85.31,85.25,3.17062967]
[1771010579910,3.17062967,85.32,85.266,3.72353752]
[1771010580107,3.17062967,85.32,85.271,3.72353752]
[1771010580304,3.17062967,85.33,85.294,10.5574]
[1771010580612,3.17062967,85.33,85.294,14.28093752]
[1771010580808,3.17062967,85.34,85.295,3.99867803]
[1771010581406,3.17062967,85.34,85.306,10.556]
[1771010581599,3.17062967,85.35,85.307,3.99867803]
[1771010582709,3.17062967,85.33,85.29,3.99867803]
[1771010582911,3.16801765,85.32,85.29,3.99867803]
[1771010583306,3.16801765,85.34,85.306,10.556]
[1771010586013,93.6,85.351,85.314,10.5549]
[1771010586313,3.66736642,85.377,85.321,3.99867803]
[1771010586518,3.16801765,85.37,85.321,3.99867803]
[1771010586919,3.16801765,85.37,85.277,14.5977031]
[1771010586920,3.16801765,85.39,85.34,3.16801765]
[1771010587115,3.16801765,85.38,85.341,3.99867803]
[1771010587416,3.16801765,85.39,85.341,3.99867803]
[1771010588818,3.16801765,85.39,85.353,10.5501]
[1771010589019,3.66736642,85.406,85.353,10.5501]
[1771010589517,3.66736642,85.406,85.355,10.5499]
[1771010589920,3.66736642,85.406,85.364,3.99867803]
[1771010591521,3.66736642,85.406,85.363,10.5489]
[1771010592633,8.47235693,85.41,85.31,8.47235693]
[1771010592634,3.66736642,85.405,85.354,10.55]
[1771010593829,3.66736642,85.403,85.354,10.55]
[1771010594033,3.66736642,85.403,85.346,10.5511]
[1771010594722,10.5443,85.401,85.346,10.5511]
[1771010594921,3.66736642,85.4,85.347,3.99867803]
[1771010595325,3.66736642,85.4,85.348,10.5507]
[1771010595634,3.66736642,85.4,85.348,14.54937803]
[1771010596134,3.66736642,85.395,85.348,3.99867803]
[1771010597638,10.5452,85.394,85.349,3.99867803]
[1771010598737,10.5438,85.406,85.354,3.99867803]
[1771010599129,3.66736642,85.389,85.306,3.99867803]
[1771010599339,8.47235693,85.37,85.322,3.99867803]
[1771010599634,8.47235693,85.39,85.322,3.99867803]
[1771010599940,3.66736642,85.403,85.322,3.99867803]
[1771010600532,10.5451,85.395,85.347,3.99867803]
[1771010600829,3.66736642,85.403,85.347,3.99867803]
[1771010601132,3.66736642,85.403,85.3,205.11407212]
[1771010601133,3.66736642,85.378,85.329,3.99867803]
[1771010601928,10.5477,85.373,85.329,3.99867803]
[1771010602939,3.66736642,85.378,85.33,3.99867803]
[1771010603243,8.47235693,85.39,85.33,3.99867803]
[1771010603838,12.13972335,85.39,85.33,3.99867803]
[1771010604038,10.5448,85.397,85.346,3.99867803]
[1771010605338,10.5457,85.39,85.346,3.99867803]
[1771010605543,3.66736642,85.389,85.346,3.99867803]
[1771010606137,3.66736642,85.389,85.349,10.5506]
[1771010606538,8.47235693,85.39,85.349,14.54927803]
[1771010606743,10.5445,85.4,85.349,14.54927803]
[1771010606943,10.5445,85.4,85.355,3.99867803]
[1771010607637,3.66736642,85.395,85.349,10.5507]
[1771010607837,3.66736642,85.395,85.349,14.54937803]
[1771010608739,3.66736642,85.389,85.341,10.5517]
[1771010609343,8.47235693,85.37,85.331,10.5529]
[1771010609934,8.47235693,85.37,85.321,3.99867803]
[1771010610145,3.66736642,85.368,85.321,14.55277803]
[1771010610344,3.66736642,85.368,85.307,3.99867803]
[1771010610652,3.66736642,85.357,85.311,10.5553]
[1771010610839,3.16603023,85.35,85.307,3.99867803]
[1771010611243,3.16603023,85.35,85.319,10.5543]
[1771010611941,3.16603023,85.34,85.319,10.5543]
[1771010612243,3.66736642,85.357,85.319,10.5543]
[1771010612244,3.16603023,85.35,85.319,10.5543]
[1771010612634,3.16603023,85.35,85.309,14.32766006]
[1771010613046,3.16603023,85.35,85.31,3.77206006]
[1771010613735,3.16603023,85.35,85.313,10.555]
[1771010614345,3.16603023,85.35,85.3,208.28010235]
[1771010614346,3.16603023,85.35,85.314,3.77206006]
[1771010615439,13.71663023,85.35,85.305,10.556]
[1771010615636,3.16603023,85.33,85.3,208.88613218]
[1771010616146,3.16603023,85.34,85.3,208.88613218]
[1771010616746,3.16603023,85.34,85.301,10.5565]
[1771010619943,3.16603023,85.34,85.279,10.7572939]
[1771010619944,3.16603023,85.33,85.291,10.5578]
[1771010620345,3.16603023,85.33,85.292,3.79007185]
[1771010620943,3.16603023,85.33,85.28,3.16603023]
[1771010620944,3.16603023,85.33,85.296,3.79007185]
[1771010622052,3.16603023,85.34,85.304,10.5562]
[1771010625056,3.16603023,85.33,85.304,10.5562]
[1771010625358,3.16603023,85.33,85.297,3.79007185]
[1771010626651,3.16603023,85.34,85.297,3.79007185]
[1771010626851,3.16603023,85.34,85.303,10.5564]
[1771010627650,3.16603023,85.34,85.309,10.5556]
[1771010627846,3.16603023,85.34,85.297,3.79007185]
[1771010628360,3.16603023,85.34,85.315,10.5549]
[1771010629353,3.16603023,85.34,85.306,10.5559]
[1771010634963,3.66794378,85.339,85.297,3.79007185]